Workbook

Sheet RNAinVAL_CPB_june2016&dec20...
B2: Experiment name: | C2: RNAinVAL_CPB_june2016&dec2016_experiments | F2: samples that should be silenced
C5: Target gene name
B6: Sample name | C6: JHBP_qPCR_TqMn | D6: LdAlas | E6: vATPaseE | F6: LdMesh
A7: blank control | B7: jun2016_H2O-1 | C7: 4.05488 | D7: 0.276637 | E7: 0.439632 | F7: 0.04331
B8: jun2016_H2O-2 | C8: 6.075544 | D8: 0.269294 | E8: 0.309225 | F8: 0.050312
B9: jun2016_H2O-3 | C9: 44.609857 | D9: 0.239065 | E9: 0.444619 | F9: 0.050165
B10: jun2016_H2O-4 | C10: 2.543368 | D10: 0.267628 | E10: 0.490973 | F10: 0.031709
A11: negative control | B11: jun2016_dsegfp-1 | C11: 108.66075 | D11: 0.319837 | E11: 1.239553 | F11: 0.03743
B12: jun2016_dsegfp-2 | C12: 52.648352 | D12: 0.144754 | E12: 0.453481 | F12: 0.040533
B13: jun2016_dsegfp-3 | C13: 3.83985 | D13: 0.123288 | E13: 1.024438 | F13: 0.037432
B14: jun2016_dsegfp-4 | C14: 103.467093 | D14: 0.190051 | E14: 0.820191 | F14: 0.028788
B15: jun2016_dsvATPaseE-1 | C15: 9.052462 | D15: 0.188384 | E15: 0.060254 | F15: 0.061088
B16: jun2016_dsvATPaseE-2 | C16: 9.058315 | D16: / | E16: 0.067757 | F16: 0.087219
B17: jun2016_dsvATPaseE-3 | C17: 6.843813 | D17: / | E17: 0.038201 | F17: 0.059306
B18: jun2016_dsvATPaseE-4 | C18: 5.264966 | D18: 0.357277 | E18: 0.094761 | F18: 0.062021
B19: jun2016_dsalas-1 | C19: 3.346905 | D19: 0.096135 | E19: 1.265467 | F19: 0.071378
B20: jun2016_dsalas-2 | C20: 1.649195 | D20: 0.10439 | E20: 0.574501 | F20: 0.076624
B21: jun2016_dsalas-3 | C21: 11.91942 | D21: 0.127584 | E21: 0.465593 | F21: 0.069628
B22: jun2016_dsalas-4 | C22: 2.462155 | D22: 0.095261 | E22: 1.04019 | F22: 0.06951
B23: jun2016_dsJHBP-1 | C23: 0.052503 | D23: 0.323071 | E23: 0.530508 | F23: 0.0576
B24: jun2016_dsJHBP-2 | C24: 0.003435 | D24: 0.276377 | E24: 1.084049 | F24: 0.049627
B25: jun2016_dsJHBP-3 | C25: 0.06811 | D25: 0.177539 | E25: 0.518149 | F25: 0.066397
B26: jun2016_dsJHBP-4 | C26: 0.005184 | D26: 0.336499 | E26: 0.453363 | F26: 0.059512
B27: jun2016_dsmesh-1 | C27: 0.002691 | D27: 0.197903 | E27: 0.93238 | F27: 0.009965
B28: jun2016_dsmesh-2 | C28: 0.137409 | D28: 0.218933 | E28: 0.751881 | F28: 0.012324
B29: jun2016_dsmesh-3 | C29: 0.119492 | D29: 0.195166 | E29: 1.567001 | F29: 0.009473
B30: jun2016_dsmesh-4 | C30: 3.085431 | D30: 0.177299 | E30: 0.814543 | F30: /
A31: blank control | B31: dec2016_H2O_1 | C31: 8.744839 | D31: 0.348394 | E31: 1.336278 | F31: 0.458822
B32: dec2016_H2O_2 | C32: 4.141346 | D32: 0.254552 | E32: 1.575856 | F32: 1.011509
B33: dec2016_H2O_3 | C33: 8.9334 | D33: 0.351251 | E33: 1.042252 | F33: 0.530946
B34: dec2016_H2O_4 | C34: 12.008814 | D34: 0.395915 | E34: 1.142047 | F34: 0.598349
A35: negative control | B35: dec2016_egfp_1 | C35: 66.687489 | D35: 0.096959 | E35: 0.776535 | F35: 0.602914
B36: dec2016_egfp_2 | C36: 16.363476 | D36: 0.180724 | E36: 0.95945 | F36: 0.572399
B37: dec2016_egfp_3 | C37: 74.51266 | D37: 0.613709 | E37: 1.751209 | F37: 0.414639
B38: dec2016_egfp_4 | C38: / | D38: 0.133379 | E38: / | F38: /
B39: dec2016_alas_1 | C39: 5.066531 | D39: 0.049931 | E39: / | F39: 0.726141
B40: dec2016_alas_2 | C40: 30.863351 | D40: 0.046551 | E40: 1.81947 | F40: 0.718631
B41: dec2016_alas_3 | C41: 76.512087 | D41: 0.117616 | E41: 2.593367 | F41: 0.704594
B42: dec2016_alas_4 | C42: 31.349688 | D42: 0.119507 | E42: 1.409103 | F42: 0.689328
B43: dec2016_JHBP_1 | C43: 0.000954 | D43: 0.431817 | E43: 1.523017 | F43: 0.707509
B44: dec2016_JHBP_2 | C44: 0.000954 | D44: / | E44: 1.138199 | F44: 0.722845
B45: dec2016_JHBP_3 | C45: 0.000954 | D45: 0.124801 | E45: / | F45: 1.188023
B46: dec2016_JHBP_4 | C46: 0.045386 | D46: / | E46: / | F46: /
A47: JUN 2016 | B47: silencing eff compared to dsegfp | C47: =1-AVERAGE(C23:C26)/AVERAGE(C11:C14) -> 0.9995188969 | D47: =1-AVERAGE(D19:D22)/AVERAGE(D11:D14) -> 0.4557736557 | E47: =1-AVERAGE(E15:E18)/AVERAGE(E11:E14) -> 0.9262301129 | F47: =1-AVERAGE(F27:F30)/AVERAGE(F11:F14) -> 0.7062806757
A48: whole larvae | B48: ttest p-val | C48: =_xlfn.T.TEST(C23:C26,C11:C14,2,2) -> 0.03424130503 | D48: =_xlfn.T.TEST(D19:D22,D11:D14,2,2) -> 0.09451546877 | E48: =_xlfn.T.TEST(E15:E18,E11:E14,2,2) -> 0.00274718444 | F48: =_xlfn.T.TEST(F27:F30,F11:F14,2,2) -> 0.0004225335774
B49: silencing eff compared to H2O | C49: =1-AVERAGE(C23:C26)/AVERAGE(C7:C10) -> 0.9977439985 | D49: =1-AVERAGE(D19:D22)/AVERAGE(D7:D10) -> 0.5977956041 | E49: =1-AVERAGE(E15:E18)/AVERAGE(E7:E10) -> 0.8450692185 | F49: =1-AVERAGE(F27:F30)/AVERAGE(F7:F10) -> 0.7586877574
B50: ttest p-val | C50: =_xlfn.T.TEST(C23:C26,C7:C10,2,2) -> 0.2077610928 | D50: =_xlfn.T.TEST(D19:D22,D7:D10,2,2) -> 8.054901138e-06 | E50: =_xlfn.T.TEST(E15:E18,E7:E10,2,2) -> 0.0001247455306 | F50: =_xlfn.T.TEST(F27:F30,F7:F10,2,2) -> 0.001409076721
A51: DEC 2016 | B51: silencing eff compared to dsegfp | C51: =1-AVERAGE(C43:C46)/AVERAGE(C35:C38) -> 0.9997703404 | D51: =1-AVERAGE(D39:D42)/AVERAGE(D35:D38) -> 0.6744589767
A52: midguts | B52: ttest p-val | C52: =_xlfn.T.TEST(C43:C46,C35:C38,2,2) -> 0.01834225975 | D52: =_xlfn.T.TEST(D39:D42,D35:D38,2,2) -> 0.2067695882
B53: silencing eff compared to H2O | C53: =1-AVERAGE(C43:C46)/AVERAGE(C31:C34) -> 0.9985737427 | D53: =1-AVERAGE(D39:D42)/AVERAGE(D31:D34) -> 0.7529056849
B54: ttest p-val | C54: =_xlfn.T.TEST(C43:C46,C31:C34,2,2) -> 0.001999021741 | D54: =_xlfn.T.TEST(D39:D42,D31:D34,2,2) -> 0.0004046578276
C56: HIGH VARIABILITY BETWEEN BIOL. REPLICATES! | D56: alas IS NOT SILENCED EFFICIENTLY

Sheet RNAinVAL_CPB_june2016&dec20 (2
B2: Experiment name: | C2: RNAinVAL_CPB_june2016&dec2016_experiments | F2: samples that should be silenced
C5: Target gene name | I5: average expression values | N5: SE
B6: Sample name | C6: JHBP_qPCR_TqMn | D6: LdAlas | E6: vATPaseE | F6: LdMesh | I6: JHBP | J6: ALAS | K6: vATPaseE | L6: MESH | N6: JHBP | O6: ALAS | P6: vATPaseE | Q6: MESH
A7: blank control | B7: jun2016_H2O-1 | C7: 4.05488 | D7: 0.276637 | E7: 0.439632 | F7: 0.04331 | H7: water | I7: =AVERAGE(C7:C10) -> 14.32091225 | J7: =AVERAGE(D7:D10) -> 0.263156 | K7: 0.42111225 | L7: 0.043874 | N7: =_xlfn.STDEV.S(C7:C10)/SQRT(COUNT(C7:C10)) -> 10.1222043 | O7: =_xlfn.STDEV.S(D7:D10)/SQRT(COUNT(D7:D10)) -> 0.008265326521 | P7: 0.03904573124 | Q7: 0.004371592444
B8: jun2016_H2O-2 | C8: 6.075544 | D8: 0.269294 | E8: 0.309225 | F8: 0.050312 | H8: dsEGFP | I8: =AVERAGE(C11:C14) -> 67.15401125 | J8: =AVERAGE(D11:D14) -> 0.1944825 | K8: 0.88441575 | L8: 0.03604575 | N8: =_xlfn.STDEV.S(C11:C14)/SQRT(COUNT(C11:C14)) -> 24.59767339 | O8: =_xlfn.STDEV.S(D11:D14)/SQRT(COUNT(D11:D14)) -> 0.04404067193 | P8: 0.1672219768 | Q8: 0.002527320464
B9: jun2016_H2O-3 | C9: 44.609857 | D9: 0.239065 | E9: 0.444619 | F9: 0.050165 | H9: target dsRNA | I9: =AVERAGE(C23:C26) -> 0.032308 | J9: =AVERAGE(D19:D22) -> 0.1058425 | K9: =AVERAGE(E15:E18) -> 0.06524325 | L9: =AVERAGE(F27:F30) -> 0.01058733333 | N9: =_xlfn.STDEV.S(C23:C26)/SQRT(COUNT(C23:C26)) -> 0.01647974194 | O9: =_xlfn.STDEV.S(D19:D22)/SQRT(COUNT(D19:D22)) -> 0.007533294305 | P9: =_xlfn.STDEV.S(E15:E18)/SQRT(COUNT(E15:E18)) -> 0.01166830609 | Q9: =_xlfn.STDEV.S(F27:F30)/SQRT(COUNT(F27:F30)) -> 0.0008798720235
B10: jun2016_H2O-4 | C10: 2.543368 | D10: 0.267628 | E10: 0.490973 | F10: 0.031709
A11: negative control | B11: jun2016_dsegfp-1 | C11: 108.66075 | D11: 0.319837 | E11: 1.239553 | F11: 0.03743 | I11: average expression values scaled to water | N11: SE
B12: jun2016_dsegfp-2 | C12: 52.648352 | D12: 0.144754 | E12: 0.453481 | F12: 0.040533 | I12: JHBP | J12: ALAS | K12: vATPaseE | L12: MESH | N12: JHBP | O12: ALAS | P12: vATPaseE | Q12: MESH
B13: jun2016_dsegfp-3 | C13: 3.83985 | D13: 0.123288 | E13: 1.024438 | F13: 0.037432 | H13: =H7 -> water | I13: =I7/$I$7 -> 1 | J13: =J7/$J$7 -> 1 | K13: =K7/$K$7 -> 1 | L13: =L7/$L$7 -> 1 | N13: =N7/$I$7 -> 0.7068128149 | O13: =O7/$J$7 -> 0.03140846692 | P13: =P7/$K$7 -> 0.09272048306 | Q13: =Q7/$L$7 -> 0.09963970562
B14: jun2016_dsegfp-4 | C14: 103.467093 | D14: 0.190051 | E14: 0.820191 | F14: 0.028788 | H14: =H8 -> dsEGFP | I14: =I8/$I$7 -> 4.6892272 | J14: =J8/$J$7 -> 0.7390388211 | K14: =K8/$K$7 -> 2.100190032 | L14: =L8/$L$7 -> 0.8215742809 | N14: =N8/$I$7 -> 1.717605203 | O14: =O8/$J$7 -> 0.1673557583 | P14: =P8/$K$7 -> 0.3970959685 | Q14: =Q8/$L$7 -> 0.05760405854
B15: jun2016_dsvATPaseE-1 | C15: 9.052462 | D15: 0.188384 | E15: 0.060254 | F15: 0.061088 | H15: =H9 -> target dsRNA | I15: =I9/$I$7 -> 0.002256001534 | J15: =J9/$J$7 -> 0.4022043959 | K15: =K9/$K$7 -> 0.1549307815 | L15: =L9/$L$7 -> 0.2413122426 | N15: =N9/$I$7 -> 0.00115074666 | O15: =O9/$J$7 -> 0.02862672447 | P15: =P9/$K$7 -> 0.02770830365 | Q15: =Q9/$L$7 -> 0.0200545203
B16: jun2016_dsvATPaseE-2 | C16: 9.058315 | D16: / | E16: 0.067757 | F16: 0.087219
B17: jun2016_dsvATPaseE-3 | C17: 6.843813 | D17: / | E17: 0.038201 | F17: 0.059306
B18: jun2016_dsvATPaseE-4 | C18: 5.264966 | D18: 0.357277 | E18: 0.094761 | F18: 0.062021
B19: jun2016_dsalas-1 | C19: 3.346905 | D19: 0.096135 | E19: 1.265467 | F19: 0.071378
B20: jun2016_dsalas-2 | C20: 1.649195 | D20: 0.10439 | E20: 0.574501 | F20: 0.076624
B21: jun2016_dsalas-3 | C21: 11.91942 | D21: 0.127584 | E21: 0.465593 | F21: 0.069628
B22: jun2016_dsalas-4 | C22: 2.462155 | D22: 0.095261 | E22: 1.04019 | F22: 0.06951
B23: jun2016_dsJHBP-1 | C23: 0.052503 | D23: 0.323071 | E23: 0.530508 | F23: 0.0576
B24: jun2016_dsJHBP-2 | C24: 0.003435 | D24: 0.276377 | E24: 1.084049 | F24: 0.049627
B25: jun2016_dsJHBP-3 | C25: 0.06811 | D25: 0.177539 | E25: 0.518149 | F25: 0.066397
B26: jun2016_dsJHBP-4 | C26: 0.005184 | D26: 0.336499 | E26: 0.453363 | F26: 0.059512
B27: jun2016_dsmesh-1 | C27: 0.002691 | D27: 0.197903 | E27: 0.93238 | F27: 0.009965
B28: jun2016_dsmesh-2 | C28: 0.137409 | D28: 0.218933 | E28: 0.751881 | F28: 0.012324
B29: jun2016_dsmesh-3 | C29: 0.119492 | D29: 0.195166 | E29: 1.567001 | F29: 0.009473
B30: jun2016_dsmesh-4 | C30: 3.085431 | D30: 0.177299 | E30: 0.814543 | F30: /
A31: blank control | B31: dec2016_H2O_1 | C31: 8.744839 | D31: 0.348394 | E31: 1.336278 | F31: 0.458822 | I31: average expression values | N31: SE
B32: dec2016_H2O_2 | C32: 4.141346 | D32: 0.254552 | E32: 1.575856 | F32: 1.011509 | I32: JHBP | J32: ALAS | N32: JHBP | O32: ALAS
B33: dec2016_H2O_3 | C33: 8.9334 | D33: 0.351251 | E33: 1.042252 | F33: 0.530946 | H33: water | I33: =AVERAGE(C31:C34) -> 8.45709975 | J33: =AVERAGE(D31:D34) -> 0.337528 | N33: =_xlfn.STDEV.S(C31:C34)/SQRT(COUNT(C30:C33)) -> 1.621472077 | O33: =_xlfn.STDEV.S(D31:D34)/SQRT(COUNT(D30:D33)) -> 0.02972155367
B34: dec2016_H2O_4 | C34: 12.008814 | D34: 0.395915 | E34: 1.142047 | F34: 0.598349 | H34: dsEGFP | I34: =AVERAGE(C35:C38) -> 52.52120833 | J34: =AVERAGE(D35:D38) -> 0.25619275 | N34: =_xlfn.STDEV.S(C35:C38)/SQRT(COUNT(C35:C38)) -> 18.21944502 | O34: =_xlfn.STDEV.S(D35:D38)/SQRT(COUNT(D35:D38)) -> 0.1203993375
A35: negative control | B35: dec2016_egfp_1 | C35: 66.687489 | D35: 0.096959 | E35: 0.776535 | F35: 0.602914 | H35: target dsRNA | I35: =AVERAGE(C43:C46) -> 0.012062 | J35: =AVERAGE(D39:D42) -> 0.08340125 | N35: =_xlfn.STDEV.S(C43:C46)/SQRT(COUNT(C43:C46)) -> 0.011108 | O35: =_xlfn.STDEV.S(D43:D46)/SQRT(COUNT(D43:D46)) -> 0.153508
B36: dec2016_egfp_2 | C36: 16.363476 | D36: 0.180724 | E36: 0.95945 | F36: 0.572399
B37: dec2016_egfp_3 | C37: 74.51266 | D37: 0.613709 | E37: 1.751209 | F37: 0.414639 | I37: average expression values scaled to water | N37: SE
B38: dec2016_egfp_4 | C38: / | D38: 0.133379 | E38: / | F38: / | I38: JHBP | J38: ALAS | N38: JHBP | O38: ALAS
B39: dec2016_alas_1 | C39: 5.066531 | D39: 0.049931 | E39: / | F39: 0.726141 | H39: =H33 -> water | I39: =I33/$I$33 -> 1 | J39: =J33/$J$33 -> 1 | N39: =N33/$I$33 -> 0.1917290945 | O39: =O33/$J$33 -> 0.08805655729
B40: dec2016_alas_2 | C40: 30.863351 | D40: 0.046551 | E40: 1.81947 | F40: 0.718631 | H40: =H34 -> dsEGFP | I40: =I34/$I$33 -> 6.210309667 | J40: =J34/$J$33 -> 0.7590266585 | N40: =N34/$I$33 -> 2.154337251 | O40: =O34/$J$33 -> 0.356709184
B41: dec2016_alas_3 | C41: 76.512087 | D41: 0.117616 | E41: 2.593367 | F41: 0.704594 | H41: =H35 -> target dsRNA | I41: 0.00142625727 | J41: 0.2470943151 | N41: 0.001313452641 | O41: 0.4548007869
B42: dec2016_alas_4 | C42: 31.349688 | D42: 0.119507 | E42: 1.409103 | F42: 0.689328
B43: dec2016_JHBP_1 | C43: 0.000954 | D43: 0.431817 | E43: 1.523017 | F43: 0.707509
B44: dec2016_JHBP_2 | C44: 0.000954 | D44: / | E44: 1.138199 | F44: 0.722845
B45: dec2016_JHBP_3 | C45: 0.000954 | D45: 0.124801 | E45: / | F45: 1.188023
B46: dec2016_JHBP_4 | C46: 0.045386 | D46: / | E46: / | F46: /
A47: JUN 2016 | B47: silencing eff compared to dsegfp | C47: =1-AVERAGE(C23:C26)/AVERAGE(C11:C14) -> 0.9995188969 | D47: =1-AVERAGE(D19:D22)/AVERAGE(D11:D14) -> 0.4557736557 | E47: =1-AVERAGE(E15:E18)/AVERAGE(E11:E14) -> 0.9262301129 | F47: =1-AVERAGE(F27:F30)/AVERAGE(F11:F14) -> 0.7062806757
A48: whole larvae | B48: ttest p-val | C48: =_xlfn.T.TEST(C23:C26,C11:C14,2,2) -> 0.03424130503 | D48: =_xlfn.T.TEST(D19:D22,D11:D14,2,2) -> 0.09451546877 | E48: =_xlfn.T.TEST(E15:E18,E11:E14,2,2) -> 0.00274718444 | F48: =_xlfn.T.TEST(F27:F30,F11:F14,2,2) -> 0.0004225335774
B49: silencing eff compared to H2O | C49: =1-AVERAGE(C23:C26)/AVERAGE(C7:C10) -> 0.9977439985 | D49: =1-AVERAGE(D19:D22)/AVERAGE(D7:D10) -> 0.5977956041 | E49: =1-AVERAGE(E15:E18)/AVERAGE(E7:E10) -> 0.8450692185 | F49: =1-AVERAGE(F27:F30)/AVERAGE(F7:F10) -> 0.7586877574
B50: ttest p-val | C50: =_xlfn.T.TEST(C23:C26,C7:C10,2,2) -> 0.2077610928 | D50: =_xlfn.T.TEST(D19:D22,D7:D10,2,2) -> 8.054901138e-06 | E50: =_xlfn.T.TEST(E15:E18,E7:E10,2,2) -> 0.0001247455306 | F50: =_xlfn.T.TEST(F27:F30,F7:F10,2,2) -> 0.001409076721
A51: DEC 2016 | B51: silencing eff compared to dsegfp | C51: =1-AVERAGE(C43:C46)/AVERAGE(C35:C38) -> 0.9997703404 | D51: =1-AVERAGE(D39:D42)/AVERAGE(D35:D38) -> 0.6744589767
A52: midguts | B52: ttest p-val | C52: =_xlfn.T.TEST(C43:C46,C35:C38,2,2) -> 0.01834225975 | D52: =_xlfn.T.TEST(D39:D42,D35:D38,2,2) -> 0.2067695882
B53: silencing eff compared to H2O | C53: =1-AVERAGE(C43:C46)/AVERAGE(C31:C34) -> 0.9985737427 | D53: =1-AVERAGE(D39:D42)/AVERAGE(D31:D34) -> 0.7529056849
B54: ttest p-val | C54: =_xlfn.T.TEST(C43:C46,C31:C34,2,2) -> 0.001999021741 | D54: =_xlfn.T.TEST(D39:D42,D31:D34,2,2) -> 0.0004046578276
C56: HIGH VARIABILITY BETWEEN BIOL. REPLICATES! | D56: alas IS NOT SILENCED EFFICIENTLY

Sheet Warning RNAinVAL_CPB_june20...
B2: Experiment name: | C2: RNAinVAL_CPB_june2016&dec2016_experiments
C5: Target gene name
B6: Sample name | C6: JHBP_qPCR_TqMn | D6: LdAlas | E6: vATPaseE | F6: LdMesh
B7: jun2016_H2O-1 | C7: 4.05488 | D7: 0.276637 | E7: 0.439632 | F7: 0.04331
B8: jun2016_H2O-2 | C8: 6.075544 | D8: 0.269294 | E8: 0.309225 | F8: 0.050312
B9: jun2016_H2O-3 | C9: 44.609857 | D9: 0.239065 | E9: 0.444619 | F9: 0.050165
B10: jun2016_H2O-4 | C10: 2.543368 | D10: 0.267628 | E10: 0.490973 | F10: 0.031709
B11: jun2016_dsegfp-1 | C11: 108.66075 | D11: 0.319837 | E11: 1.239553 | F11: 0.03743
B12: jun2016_dsegfp-2 | C12: 52.648352 | D12: 0.144754 | E12: 0.453481 | F12: 0.040533
B13: jun2016_dsegfp-3 | C13: 3.83985 | D13: 0.123288 | E13: 1.024438 | F13: 0.037432
B14: jun2016_dsegfp-4 | C14: 103.467093 | D14: 0.190051 | E14: 0.820191 | F14: 0.028788
B15: jun2016_dsvATPaseE-1 | C15: 9.052462 | D15: 0.188384 | E15: 0.060254 | F15: 0.061088
B16: jun2016_dsvATPaseE-2 | C16: 9.058315 | D16: QC target failed | E16: 0.067757 | F16: 0.087219
B17: jun2016_dsvATPaseE-3 | C17: 6.843813 | D17: QC target failed | E17: 0.038201 | F17: 0.059306
B18: jun2016_dsvATPaseE-4 | C18: 5.264966 | D18: 0.357277 | E18: 0.094761 | F18: 0.062021
B19: jun2016_dsalas-1 | C19: 3.346905 | D19: 0.096135 | E19: 1.265467 | F19: 0.071378
B20: jun2016_dsalas-2 | C20: 1.649195 | D20: 0.10439 | E20: 0.574501 | F20: 0.076624
B21: jun2016_dsalas-3 | C21: 11.91942 | D21: 0.127584 | E21: 0.465593 | F21: 0.069628
B22: jun2016_dsalas-4 | C22: 2.462155 | D22: 0.095261 | E22: 1.04019 | F22: 0.06951
B23: jun2016_dsJHBP-1 | C23: 0.052503 | D23: 0.323071 | E23: 0.530508 | F23: 0.0576
B24: jun2016_dsJHBP-2 | C24: 0.003435 | D24: 0.276377 | E24: 1.084049 | F24: 0.049627
B25: jun2016_dsJHBP-3 | C25: 0.06811 | D25: 0.177539 | E25: 0.518149 | F25: 0.066397
B26: jun2016_dsJHBP-4 | C26: 0.005184 | D26: 0.336499 | E26: 0.453363 | F26: 0.059512
B27: jun2016_dsmesh-1 | C27: 0.002691 | D27: 0.197903 | E27: 0.93238 | F27: 0.009965
B28: jun2016_dsmesh-2 | C28: 0.137409 | D28: 0.218933 | E28: 0.751881 | F28: 0.012324
B29: jun2016_dsmesh-3 | C29: 0.119492 | D29: 0.195166 | E29: 1.567001 | F29: 0.009473
B30: jun2016_dsmesh-4 | C30: 3.085431 | D30: 0.177299 | E30: 0.814543 | F30: QC target failed
B31: dec2016_H2O_1 | C31: 8.744839 | D31: 0.348394 | E31: 1.336278 | F31: 0.458822
B32: dec2016_H2O_2 | C32: 4.141346 | D32: 0.254552 | E32: 1.575856 | F32: 1.011509
B33: dec2016_H2O_3 | C33: 8.9334 | D33: 0.351251 | E33: 1.042252 | F33: 0.530946
B34: dec2016_H2O_4 | C34: 12.008814 | D34: 0.395915 | E34: 1.142047 | F34: 0.598349
B35: dec2016_egfp_1 | C35: 66.687489 | D35: 0.096959 | E35: 0.776535 | F35: 0.602914
B36: dec2016_egfp_2 | C36: 16.363476 | D36: 0.180724 | E36: 0.95945 | F36: 0.572399
B37: dec2016_egfp_3 | C37: 74.51266 | D37: 0.613709 | E37: 1.751209 | F37: 0.414639
B38: dec2016_egfp_4 | C38: QC target failed | D38: 0.133379 | E38: QC target failed | F38: QC target failed
B39: dec2016_alas_1 | C39: 5.066531 | D39: 0.049931 | E39: QC target failed | F39: 0.726141
B40: dec2016_alas_2 | C40: 30.863351 | D40: 0.046551 | E40: 1.81947 | F40: 0.718631
B41: dec2016_alas_3 | C41: 76.512087 | D41: 0.117616 | E41: 2.593367 | F41: 0.704594
B42: dec2016_alas_4 | C42: 31.349688 | D42: 0.119507 | E42: 1.409103 | F42: 0.689328
B43: dec2016_JHBP_1 | C43: Under LOQ | D43: 0.431817 | E43: 1.523017 | F43: 0.707509
B44: dec2016_JHBP_2 | C44: Under LOQ | D44: QC target failed | E44: 1.138199 | F44: 0.722845
B45: dec2016_JHBP_3 | C45: Under LOQ | D45: 0.124801 | E45: QC target failed | F45: 1.188023
B46: dec2016_JHBP_4 | C46: 0.045386 | D46: QC target failed | E46: QC target failed | F46: QC target failed
A47: JUN 2016 | B47: silencing eff compared to dsegfp | C47: =1-AVERAGE(C23:C26)/AVERAGE(C11:C14) -> 0.9995188969 | D47: =1-AVERAGE(D19:D22)/AVERAGE(D11:D14) -> 0.4557736557 | E47: =1-AVERAGE(E15:E18)/AVERAGE(E11:E14) -> 0.9262301129 | F47: =1-AVERAGE(F27:F30)/AVERAGE(F11:F14) -> 0.7062806757
A48: whole larvae | B48: ttest p-val | C48: =_xlfn.T.TEST(C23:C26,C11:C14,2,2) -> 0.03424130503 | D48: =_xlfn.T.TEST(D19:D22,D11:D14,2,2) -> 0.09451546877 | E48: =_xlfn.T.TEST(E15:E18,E11:E14,2,2) -> 0.00274718444 | F48: =_xlfn.T.TEST(F27:F30,F11:F14,2,2) -> 0.0004225335774
B49: silencing eff compared to H2O | C49: =1-AVERAGE(C23:C26)/AVERAGE(C11:C14) -> 0.9995188969 | D49: =1-AVERAGE(D19:D22)/AVERAGE(D11:D14) -> 0.4557736557 | E49: =1-AVERAGE(E15:E18)/AVERAGE(E11:E14) -> 0.9262301129 | F49: =1-AVERAGE(F27:F30)/AVERAGE(F11:F14) -> 0.7062806757
B50: ttest p-val | C50: =_xlfn.T.TEST(C23:C26,C7:C10,2,2) -> 0.2077610928 | D50: =_xlfn.T.TEST(D19:D22,D7:D10,2,2) -> 8.054901138e-06 | E50: =_xlfn.T.TEST(E15:E18,E7:E10,2,2) -> 0.0001247455306 | F50: =_xlfn.T.TEST(F27:F30,F7:F10,2,2) -> 0.001409076721
A51: DEC 2016 | B51: silencing eff compared to dsegfp | C51: =1-AVERAGE(C43:C46)/AVERAGE(C35:C38) -> 0.9991358538 | D51: =1-AVERAGE(D39:D42)/AVERAGE(D35:D38) -> 0.6744589767
A52: midguts | B52: ttest p-val | C52: =_xlfn.T.TEST(C43:C46,C35:C38,2,2) ->  | D52: =_xlfn.T.TEST(D39:D42,D35:D38,2,2) -> 0.2067695882
B53: silencing eff compared to H2O | C53: =1-AVERAGE(C43:C46)/AVERAGE(C31:C34) -> 0.9946333848 | D53: =1-AVERAGE(D39:D42)/AVERAGE(D31:D34) -> 0.7529056849
B54: ttest p-val | C54: =_xlfn.T.TEST(C43:C46,C31:C34,2,2) ->  | D54: =_xlfn.T.TEST(D39:D42,D31:D34,2,2) -> 0.0004046578276
